fUSD/lending_fUSD_20260405
["ID","MTS","AMOUNT","RATE_DAILY","PERIOD"]
[419750450,1775353874674,-938.11,0.00035616,9]
[419750451,1775353874683,-500.0,0.00035616,9]
[419750452,1775353874692,-500.0,0.00035616,9]
[419750453,1775353874701,-500.0,0.00035616,9]
[419750454,1775353874710,-154.36663459,0.00035616,9]
[419750455,1775353874719,-1840.87,0.00035616,9]
[419750456,1775353874728,-500.0,0.00035616,9]
[419750457,1775353874737,-500.0,0.00035616,9]
[419750458,1775353874746,-500.0,0.00035616,9]
[419750459,1775353874755,-500.0,0.00035616,9]
[419750460,1775353874764,-511.22818692,0.00035616,9]
[419750461,1775353874773,-1500.19,0.00035616,9]
[419750462,1775353874784,-161.7453214,0.00035616,9]
[419750463,1775353874794,-504.57463209,0.00035616,9]
[419750464,1775353874807,-500.0,0.00035616,9]
[419750465,1775353874816,-508.12799453,0.00035616,9]
[419750466,1775353874826,-500.0,0.00035616,9]
[419750467,1775353874836,-620.9596792,0.00035616,9]
[419750468,1775353874847,-838.91,0.00035616,9]
[419750469,1775353874857,-541.67717102,0.00035616,9]
[419750470,1775353874867,-532.88,0.00035616,9]
[419750471,1775353874877,-526.25,0.00035616,9]
[419750472,1775353874894,-522.21962638,0.00035616,9]
[419750473,1775353874903,-968.52,0.00035616,9]
[419750474,1775353874912,-500.0,0.00035616,9]
[419750475,1775353874921,-321.01376516,0.00035616,9]
[419750476,1775353874930,-512.3342577,0.00035616,9]
[419750477,1775353874940,-288.58382606,0.00035616,9]
[419750478,1775353874949,-500.0,0.00035616,9]
[419750479,1775353874958,-509.13279555,0.00035616,9]
[419750480,1775353874967,-500.0,0.00035616,9]
[419750481,1775353874976,-721.72,0.00035616,9]
[419750482,1775353874986,-500.0,0.00035616,9]
[419750483,1775353874995,-506.80556826,0.00035616,9]
[419750484,1775353875004,-500.0,0.00035616,9]
[419750485,1775353875013,-505.26170443,0.00035616,9]
[419750486,1775353875022,-500.0,0.00035616,9]
[419750487,1775353875031,-500.0,0.00035616,9]
[419750488,1775353875040,-500.0,0.00035616,9]
[419750489,1775353875049,-512.80448951,0.00035616,9]
[419750490,1775353875266,-500.0,0.00035616,9]
[419750491,1775353875276,-509.4075834,0.00035616,9]
[419750492,1775353875285,-500.0,0.00035616,9]
[419750493,1775353875294,-345.75635394,0.00035616,9]
[419750494,1775353875303,-500.0,0.00035616,9]
[419750495,1775353875313,-202.51019507,0.00035616,9]
[419750496,1775353875322,-500.0,0.00035616,9]
[419750497,1775353875331,-512.60860046,0.00035616,9]
[419750498,1775353875340,-739.39,0.00035616,9]
[419750499,1775353875349,-515.65096257,0.00035616,9]
[419750500,1775353875359,-1454.17,0.00035616,9]
[419750501,1775353875368,-500.0,0.00035616,2]
[419750502,1775353875379,-500.0,0.00035616,9]
[419750503,1775353875388,-500.0,0.00035616,9]
[419750504,1775353875398,-500.0,0.00035616,9]
[419750505,1775353875407,-1198.21,0.00035616,9]
[419750506,1775353875416,-511.76492788,0.00035616,9]
[419750507,1775353875426,-695.01,0.00035616,9]
[419750508,1775353875435,-1157.87,0.00035616,9]
[419750509,1775353875445,-627.2412249,0.00035616,9]
[419750510,1775353875454,-500.0,0.00035616,9]
[419750511,1775353875463,-507.06339562,0.00035616,9]
[419750512,1775353875473,-500.0,0.00035616,9]
[419750513,1775353875482,-500.0,0.00035616,9]
[419750514,1775353875491,-690.69,0.00035616,9]
[419750515,1775353875500,-500.0,0.00035616,9]
[419750516,1775353875510,-509.29371073,0.00035616,9]
[419750517,1775353875519,-504.33666655,0.00035616,9]
[419750518,1775353875528,-500.0,0.00035616,9]
[419750519,1775353875537,-505.04993093,0.00035616,9]
[419750520,1775353875546,-810.45,0.00035616,9]
[419750521,1775353875556,-500.0,0.00035616,9]
[419750522,1775353875566,-1157.19,0.00035616,9]
[419750523,1775353875576,-500.0,0.00035616,9]
[419750524,1775353875585,-500.0,0.00035616,9]
[419750525,1775353875594,-666.9,0.00035616,9]
[419750526,1775353875603,-500.0,0.00035616,9]
[419750527,1775353875612,-560.41080965,0.00035616,9]
[419750528,1775353875621,-644.60761183,0.00035616,9]
[419750529,1775353875631,-580.07853826,0.00035616,9]
[419750530,1775353875640,-500.0,0.00035616,9]
[419750531,1775353875649,-500.0,0.00035616,9]
[419750532,1775353875658,-1097.67,0.00035616,9]
[419750533,1775353875670,-500.0,0.00035616,9]
[419750534,1775353875680,-554.39,0.00035616,9]
[419750535,1775353875691,-500.0,0.00035616,9]
[419750536,1775353875701,-516.60928901,0.00035616,9]
[419750537,1775353875710,-500.0,0.00035616,9]
[419750538,1775353875719,-500.0,0.00035616,9]
[419750539,1775353875728,-500.0,0.00035616,9]
[419750540,1775353875738,-1070.31,0.00035616,9]
[419750541,1775353875747,-500.0,0.00035616,9]
[419750542,1775353875757,-500.0,0.00035616,9]
[419750543,1775353875766,-1249.75,0.00035616,9]
[419750544,1775353875775,-659.27,0.00035616,9]
[419750545,1775353875784,-500.0,0.00035616,9]
[419750546,1775353875794,-1182.69,0.00035616,9]
[419750547,1775353875803,-500.0,0.00035616,9]
[419750548,1775353875813,-500.0,0.00035616,9]
[419750549,1775353875822,-581.96457829,0.00035616,9]
[419750550,1775353875832,-500.0,0.00035616,9]
[419750551,1775353875841,-570.00684895,0.00035616,9]
[419750552,1775353875850,-500.0,0.00035616,9]
[419750553,1775353875859,-500.0,0.00035616,2]
[419750554,1775353875868,-500.0,0.00035616,9]
[419750555,1775353875877,-500.0,0.00035616,9]
[419750556,1775353875886,-908.3,0.00035616,9]
[419750557,1775353875895,-500.0,0.00035616,9]
[419750558,1775353875904,-500.0,0.00035616,9]
[419750559,1775353875913,-500.0,0.00035616,9]
[419750560,1775353875922,-1131.52,0.00035616,9]
[419750561,1775353875932,-500.0,0.00035616,9]
[419750562,1775353875941,-681.35,0.00035616,9]
[419750563,1775353875951,-505.40995276,0.00035616,9]
[419750564,1775353875960,-500.0,0.00035616,9]
[419750565,1775353875968,-540.12249831,0.00035616,9]
[419750566,1775353875978,-505.4839947,0.00035616,9]
[419750567,1775353875987,-500.0,0.00035616,9]
[419750568,1775353875997,-500.0,0.00035616,9]
[419750569,1775353876007,-503.50487203,0.00035616,9]
[419750570,1775353876016,-500.0,0.00035616,9]
[419750571,1775353876026,-563.5,0.00035616,9]
[419750572,1775353876035,-557.98,0.00035616,9]
[419750573,1775353876047,-500.0,0.00035616,9]
[419750574,1775353876056,-677.45,0.00035616,9]
[419750575,1775353876065,-504.4946115,0.00035616,9]
[419750576,1775353876087,-500.0,0.00035616,9]
[419750577,1775353876096,-560.93,0.00035616,9]
[419750578,1775353876106,-573.01,0.00035616,9]
[419750579,1775353876115,-500.0,0.00035616,9]
[419750580,1775353876124,-1401.88,0.00035616,9]
[419750581,1775353876133,-506.94442887,0.00035616,9]
[419750582,1775353876142,-500.0,0.00035616,9]
[419750583,1775353876152,-1117.6,0.00035616,9]
[419750584,1775353876161,-500.0,0.00035616,9]
[419750585,1775353876170,-500.0,0.00035616,9]
[419750586,1775353876179,-500.0,0.00035616,9]
[419750587,1775353876188,-500.0,0.00035616,9]
[419750588,1775353876198,-500.0,0.00035616,9]
[419750589,1775353876207,-505.51363388,0.00035616,9]
[419750590,1775353876216,-500.0,0.00035616,9]
[419750591,1775353876226,-610.3478825,0.00035616,9]
[419750592,1775353876235,-500.0,0.00035616,9]
[419750593,1775353876244,-534.99,0.00035616,9]
[419750594,1775353876255,-568.61307813,0.00035616,9]
[419750595,1775353876264,-642.04332644,0.00035616,9]
[419750596,1775353876274,-944.87,0.00035616,9]
[419750597,1775353876283,-505.01702085,0.00035616,9]
[419750598,1775353876292,-500.0,0.00035616,9]
[419750599,1775353876302,-500.0,0.00035616,9]
[419750600,1775353876311,-521.51738218,0.00035616,9]
[419750601,1775353876320,-771.12,0.00035616,9]
[419750602,1775353876329,-1033.85,0.00035616,9]
[419750603,1775353876338,-661.82,0.00035616,9]
[419750604,1775353876349,-500.0,0.00035616,9]
[419750605,1775353876359,-500.0,0.00035616,2]
[419750606,1775353876368,-1074.83,0.00035616,9]
[419750607,1775353876378,-479.41143237,0.00035616,2]
[419750608,1775353876387,-1208.46,0.00035616,9]
[419750609,1775353876397,-527.29,0.00035616,9]
[419750610,1775353876406,-620.02,0.00035616,9]
[419750611,1775353876416,-500.0,0.00035616,9]
[419750612,1775353876425,-539.3430893,0.00035616,9]
[419750613,1775353876434,-549.5,0.00035616,9]
[419750614,1775353876444,-500.0,0.00035616,9]
[419750615,1775353876454,-500.0,0.00035616,9]
[419750616,1775353876463,-500.0,0.00035616,9]
[419750617,1775353876473,-500.0,0.00035616,9]
[419750618,1775353876482,-608.24,0.00035616,9]
[419750619,1775353876492,-508.29298038,0.00035616,9]
[419750620,1775353876502,-1089.31,0.00035616,9]
[419750621,1775353876512,-1532.9,0.00035616,9]
[419750622,1775353876521,-510.16526313,0.00035616,9]
[419750623,1775353876530,-523.28180177,0.00035616,9]
[419750624,1775353876539,-505.05779466,0.00035616,9]
[419750625,1775353876549,-507.95522,0.00035616,9]
[419750626,1775353876558,-566.32,0.00035616,9]
[419750627,1775353876567,-500.0,0.00035616,9]
[419750628,1775353876577,-1542.53,0.00035616,9]
[419750629,1775353876586,-508.6268317,0.00035616,9]
[419750630,1775353876595,-500.0,0.00035616,9]
[419750631,1775353876605,-509.48501358,0.00035616,9]
[419750632,1775353876614,-510.41317164,0.00035616,9]
[419750633,1775353876624,-500.0,0.00035616,9]
[419750634,1775353876633,-500.0,0.00035616,9]
[419750635,1775353876643,-500.0,0.00035616,9]
[419750636,1775353876652,-1835.06,0.00035616,9]
[419750637,1775353876662,-500.0,0.00035616,9]
[419750638,1775353876671,-630.54162535,0.00035616,9]
[419750639,1775353876680,-930.05,0.00035616,9]
[419750640,1775353876690,-500.0,0.00035616,9]
[419750641,1775353876699,-500.0,0.00035616,9]
[419750642,1775353876708,-882.83,0.00035616,9]
[419750643,1775353876717,-2962.35,0.00035616,9]
[419750644,1775353876727,-500.0,0.00035616,9]
[419750645,1775353876736,-514.84,0.00035616,9]
[419750646,1775353876746,-1344.29,0.00035616,9]
[419750647,1775353876756,-500.0,0.00035616,9]
[419750648,1775353876765,-536.58298853,0.00035616,9]
[419750649,1775353876775,-726.58,0.00035616,9]
[419750650,1775353876784,-500.0,0.00035616,9]
[419750651,1775353876794,-500.0,0.00035616,9]
[419750652,1775353876804,-1917.29,0.00035616,9]
[419750653,1775353876813,-1090.95,0.00035616,9]
[419750654,1775353876822,-1110.64,0.00035616,9]
[419750655,1775353876832,-500.0,0.00035616,9]
[419750656,1775353876841,-503.53345563,0.00035616,9]
[419750657,1775353876850,-500.0,0.00035616,9]
[419750658,1775353876860,-514.46929811,0.00035616,9]
[419750659,1775353876869,-561.86158878,0.00035616,9]
[419750660,1775353876878,-1806.89,0.00035616,4]
[419750661,1775353876887,-594.58742568,0.00035616,9]
[419750662,1775353876896,-500.0,0.00035616,9]
[419750663,1775353876905,-500.0,0.00035616,9]
[419750664,1775353876914,-508.52548225,0.00035616,9]
[419750665,1775353876923,-507.1796334,0.00035616,9]
[419750666,1775353876932,-500.0,0.00035616,9]
[419750667,1775353876941,-694.01,0.00035616,9]
[419750668,1775353876950,-500.0,0.00035616,9]
[419750669,1775353876959,-500.0,0.00035616,9]
[419750670,1775353876969,-1276.54,0.00035616,9]
[419750671,1775353876978,-1257.81,0.00035616,9]
[419750672,1775353876987,-500.0,0.00035616,9]
[419750673,1775353876997,-503.17796075,0.00035616,9]
[419750674,1775353877007,-500.0,0.00035616,9]
[419750675,1775353877016,-600.1161464,0.00035616,9]
[419750676,1775353877025,-500.0,0.00035616,9]
[419750677,1775353877035,-500.0,0.00035616,9]
[419750678,1775353877044,-500.0,0.00035616,9]
[419750679,1775353877054,-517.596512,0.00035616,9]
[419750680,1775353877063,-589.21355598,0.00035616,9]
[419750681,1775353877072,-500.0,0.00035616,9]
[419750682,1775353877082,-869.89,0.00035616,9]
[419750683,1775353877091,-513.17007865,0.00035616,9]
[419750684,1775353877100,-500.0,0.00035616,9]
[419750685,1775353877110,-2840.53,0.00035616,9]
[419750686,1775353877119,-500.0,0.00035616,9]
[419750687,1775353877128,-517.3012102,0.00035616,9]
[419750688,1775353877137,-1622.44,0.00035616,9]
[419750689,1775353877146,-2043.02,0.00035616,9]
[419750690,1775353877156,-500.0,0.00035616,9]
[419750691,1775353877166,-501.95966481,0.00035616,9]
[419750692,1775353877175,-605.32,0.00035616,9]
[419750693,1775353877184,-586.94267598,0.00035616,9]
[419750694,1775353877194,-500.0,0.00035616,9]
[419750695,1775353877203,-2058.21,0.00035616,9]
[419750696,1775353877211,-500.0,0.00035616,9]
[419750697,1775353877220,-518.77,0.00035616,9]
[419750698,1775353877230,-500.0,0.00035616,9]
[419750699,1775353877239,-511.75183663,0.00035616,9]
[419750700,1775353877248,-1239.52,0.00035616,9]
[419750701,1775353877257,-811.59,0.00035616,9]
[419750702,1775353877266,-1285.78,0.00035616,9]
[419750703,1775353877276,-837.02,0.00035616,9]
[419750704,1775353877285,-500.0,0.00035616,9]
[419750705,1775353877294,-562.72,0.00035616,9]
[419750706,1775353877303,-500.0,0.00035616,9]
[419750707,1775353877312,-500.0,0.00035616,9]
[419750708,1775353877321,-500.0,0.00035616,9]
[419750709,1775353877331,-512.97609433,0.00035616,9]
[419750710,1775353877340,-1406.9,0.00035616,9]
[419750711,1775353877349,-510.13808993,0.00035616,9]
[419750712,1775353877360,-509.29,0.00035616,9]
[419750713,1775353877369,-1330.71,0.00035616,9]
[419750714,1775353877379,-1752.31,0.00035616,9]
[419750715,1775353877388,-601.4,0.00035616,9]
[419750716,1775353877399,-500.0,0.00035616,9]
[419750717,1775353877408,-1117.04,0.00035616,9]
[419750718,1775353877419,-500.0,0.00035616,9]
[419750719,1775353877428,-162.99391227,0.00035616,9]
[419750720,1775353877437,-500.0,0.00035616,9]
[419750721,1775353877446,-967.5,0.00035616,9]
[419750722,1775353877455,-1405.74,0.00035616,9]
[419750723,1775353877465,-222.18585432,0.00035616,9]
[419750724,1775353877475,-500.0,0.00035616,9]
[419750725,1775353877484,-507.67989343,0.00035616,9]
[419750726,1775353877493,-565.46311693,0.00035616,9]
[419750727,1775353877503,-603.37,0.00035616,9]
[419750728,1775353877512,-500.0,0.00035616,9]
[419750729,1775353877521,-507.36063265,0.00035616,9]
[419750730,1775353877531,-840.34,0.00035616,9]
[419750731,1775353877540,-507.35854423,0.00035616,9]
[419750732,1775353877549,-632.40878398,0.00035616,9]
[419750733,1775353877559,-505.88495843,0.00035616,9]
[419750734,1775353877567,-665.18,0.00035616,9]
[419750735,1775353877576,-592.68,0.00035616,9]
[419750736,1775353877586,-757.19,0.00035616,9]
[419750737,1775353877595,-981.56,0.00035616,9]
[419750738,1775353877604,-500.0,0.00035616,9]
[419750739,1775353877613,-500.0,0.00035616,9]
[419750740,1775353877622,-592.96,0.00035616,9]
[419750741,1775353877631,-565.52196369,0.00035616,9]
[419750742,1775353877640,-500.0,0.00035616,9]
[419750743,1775353877650,-570.61416408,0.00035616,9]
[419750744,1775353877659,-621.49141939,0.00035616,9]
[419750745,1775353877668,-1204.0,0.00035616,9]
[419750746,1775353877677,-500.0,0.00035616,9]
[419750747,1775353877686,-1216.81,0.00035616,9]
[419750748,1775353877696,-500.0,0.00035616,9]
[419750749,1775353877705,-500.0,0.00035616,9]
[419750750,1775353877715,-528.25561606,0.00035616,9]
[419750751,1775353877724,-1143.95,0.00035616,9]
[419750752,1775353877733,-500.0,0.00035616,9]
[419750753,1775353877742,-564.39816303,0.00035616,9]
[419750754,1775353877752,-1171.72,0.00035616,9]
[419750755,1775353877761,-1310.78,0.00035616,9]
[419750756,1775353877770,-500.0,0.00035616,9]
[419750757,1775353877779,-600.62,0.00035616,9]
[419750758,1775353877789,-500.0,0.00035616,9]
[419750759,1775353877799,-540.95362478,0.00035616,9]
[419750760,1775353877809,-500.0,0.00035616,9]
[419750761,1775353877819,-824.71,0.00035616,9]
[419750762,1775353877829,-584.01888979,0.00035616,9]
[419750763,1775353877839,-500.0,0.00035616,9]
[419750764,1775353877849,-559.8406165,0.00035616,9]
[419750765,1775353877859,-500.0,0.00035616,9]
[419750766,1775353877868,-500.0,0.00035616,9]
[419750767,1775353877877,-500.0,0.00035616,9]
[419750768,1775353877887,-500.0,0.00035616,9]
[419750769,1775353877897,-513.81738832,0.00035616,9]
[419750770,1775353877906,-500.0,0.00035616,9]
[419750771,1775353877916,-679.18,0.00035616,9]
[419750772,1775353877925,-713.52,0.00035616,9]
[419750773,1775353877934,-541.46,0.00035616,9]
[419750774,1775353877944,-500.0,0.00035616,9]
[419750775,1775353877954,-500.0,0.00035616,9]
[419750776,1775353877963,-500.0,0.00035616,9]
[419750777,1775353877972,-500.0,0.00035616,9]
[419750778,1775353877983,-500.0,0.00035616,9]
[419750779,1775353877992,-1265.28,0.00035616,9]
[419750780,1775353878001,-2096.63,0.00035616,9]
[419750781,1775353878011,-529.99,0.00035616,9]
[419750782,1775353878020,-500.0,0.00035616,9]
[419750783,1775353878031,-500.0,0.00035616,9]
[419750784,1775353878041,-1678.25,0.00035616,9]
[419750785,1775353878051,-579.79107627,0.00035616,9]
[419750786,1775353878061,-912.58,0.00035616,9]
[419750787,1775353878071,-1316.7,0.00035616,9]
[419750788,1775353878080,-1002.17,0.00035616,9]
[419750789,1775353878090,-512.05381216,0.00035616,9]
[419750790,1775353878099,-500.0,0.00035616,9]
[419750791,1775353878109,-508.79716595,0.00035616,9]
[419750792,1775353878119,-708.55,0.00035616,9]
[419750793,1775353878136,-1280.85,0.00035616,9]
[419750794,1775353878145,-500.0,0.00035616,9]
[419750795,1775353878154,-500.0,0.00035616,9]
[419750796,1775353878163,-1308.76,0.00035616,9]
[419750797,1775353878172,-500.0,0.00035616,9]
[419750798,1775353878181,-550.71,0.00035616,9]
[419750799,1775353878190,-500.0,0.00035616,9]
[419750800,1775353878199,-500.0,0.00035616,9]
[419750801,1775353878209,-507.69,0.00035616,9]
[419750802,1775353878218,-500.0,0.00035616,9]
[419750803,1775353878227,-508.86,0.00035616,9]
[419750804,1775353878236,-500.0,0.00035616,9]
[419750805,1775353878245,-500.0,0.00035616,9]
[419750806,1775353878254,-504.85709288,0.00035616,9]
[419750807,1775353878264,-500.0,0.00035616,9]
[419750808,1775353878273,-500.0,0.00035616,9]
[419750809,1775353878283,-500.0,0.00035616,9]
[419750810,1775353878292,-1447.95,0.00035616,9]
[419750811,1775353878303,-515.22002188,0.00035616,9]
[419750812,1775353878487,-570.54,0.00035616,9]
[419750813,1775353878517,-500.0,0.00035616,9]
[419750814,1775353878527,-2220.24,0.00035616,9]
[419750815,1775353878535,-1134.1,0.00035616,9]
[419750816,1775353878544,-1096.27,0.00035616,9]
[419750817,1775353878553,-580.59898301,0.00035616,9]
[419750818,1775353878563,-1312.71,0.00035616,9]
[419750819,1775353878573,-500.0,0.00035616,9]
[419750820,1775353878583,-500.0,0.00035616,9]
[419750821,1775353878592,-501.47319555,0.00035616,9]
[419750822,1775353878602,-595.44320436,0.00035616,9]
[419750823,1775353878611,-597.19999543,0.00035616,9]
[419750824,1775353878620,-500.0,0.00035616,9]
[419750825,1775353878629,-1130.64,0.00035616,9]
[419750826,1775353878639,-519.56,0.00035616,9]
[419750827,1775353878648,-551.42,0.00035616,9]
[419750828,1775353878658,-500.0,0.00035616,9]
[419750829,1775353878670,-500.0,0.00035616,9]
[419750830,1775353878679,-578.72886444,0.00035616,9]
[419750831,1775353878688,-1648.3,0.00035616,9]
[419750832,1775353878697,-597.43226109,0.00035616,9]
[419750833,1775353878706,-507.10730493,0.00035616,9]
[419750834,1775353878718,-507.46637211,0.00035616,9]
[419750835,1775353878728,-501.45975476,0.00035616,9]
[419750836,1775353878738,-500.0,0.00035616,9]
[419750837,1775353878747,-500.0,0.00035616,9]
[419750838,1775353878757,-500.0,0.00035616,9]
[419750839,1775353878766,-508.67241425,0.00035616,9]
[419750840,1775353878776,-539.33,0.00035616,9]
[419750841,1775353878785,-511.78906391,0.00035616,9]
[419750842,1775353878796,-500.0,0.00035616,9]
[419750843,1775353878806,-500.0,0.00035616,9]
[419750844,1775353878816,-1345.08,0.00035616,9]
[419750845,1775353878826,-500.0,0.00035616,9]
[419750846,1775353878836,-776.44,0.00035616,9]
[419750847,1775353878847,-500.0,0.00035616,9]
[419750848,1775353878857,-517.42,0.00035616,9]
[419750849,1775353878868,-500.0,0.00035616,9]
[419750850,1775353878878,-1048.94,0.00035616,9]
[419750851,1775353878888,-504.96646845,0.00035616,7]
[419750852,1775353878898,-1199.66,0.00035616,9]
[419750853,1775353878907,-1416.41,0.00035616,9]
[419750854,1775353878916,-500.0,0.00035616,9]
[419750855,1775353878925,-1035.67,0.00035616,9]
[419750856,1775353878935,-500.0,0.00035616,9]
[419750857,1775353878944,-500.0,0.00035616,9]
[419750858,1775353878953,-510.43727047,0.00035616,9]
[419750859,1775353878962,-500.0,0.00035616,9]
[419750860,1775353878971,-1130.14,0.00035616,9]
[419750861,1775353878980,-507.29755419,0.00035616,9]
[419750862,1775353878989,-500.0,0.00035616,9]
[419750863,1775353879000,-500.0,0.00035616,9]
[419750864,1775353879010,-1104.18,0.00035616,9]
[419750865,1775353879019,-575.54737971,0.00035616,9]
[419750866,1775353879028,-637.8677296,0.00035616,9]
[419750867,1775353879038,-864.21,0.00035616,9]
[419750868,1775353879048,-500.0,0.00035616,9]
[419750869,1775353879058,-500.0,0.00035616,9]
[419750870,1775353879067,-871.41,0.00035616,9]
[419750871,1775353879076,-495.94388827,0.00035616,9]
[419750872,1775353879085,-500.0,0.00035616,9]
[419750873,1775353879094,-1067.06,0.00035616,9]
[419750874,1775353879103,-500.0,0.00035616,9]
[419750875,1775353879112,-500.0,0.00035616,9]
[419750876,1775353879123,-1205.38,0.00035616,9]
[419750877,1775353879132,-500.0,0.00035616,9]
[419750878,1775353879141,-500.0,0.00035616,9]
[419750879,1775353879157,-710.72,0.00035616,9]
[419750880,1775353879167,-500.0,0.00035616,9]
[419750881,1775353879176,-500.0,0.00035616,9]
[419750882,1775353879185,-554.59,0.00035616,9]
[419750883,1775353879194,-508.69035814,0.00035616,9]
[419750884,1775353879204,-500.0,0.00035616,9]
[419750885,1775353879212,-500.0,0.00035616,9]
[419750886,1775353879222,-500.0,0.00035616,9]
[419750887,1775353879231,-500.0,0.00035616,9]
[419750888,1775353879240,-500.0,0.00035616,9]
[419750889,1775353879249,-628.28,0.00035616,9]
[419750890,1775353879259,-524.68832364,0.00035616,9]
[419750891,1775353879268,-500.0,0.00035616,9]
[419750892,1775353879277,-500.0,0.00035616,9]
[419750893,1775353879286,-614.75959079,0.00035616,9]
[419750894,1775353879296,-500.0,0.00035616,9]
[419750895,1775353879305,-500.0,0.00035616,9]
[419750896,1775353879314,-500.0,0.00035616,9]
[419750897,1775353879323,-500.0,0.00035616,9]
[419750898,1775353879332,-1788.09,0.00035616,9]
[419750899,1775353879342,-1453.27,0.00035616,9]
[419750900,1775353879351,-500.0,0.00035616,9]
[419750901,1775353879360,-862.51,0.00035616,9]
[419750902,1775353879370,-710.89,0.00035616,9]
[419750903,1775353879379,-1605.08,0.00035616,9]
[419750904,1775353879388,-500.0,0.00035616,9]
[419750905,1775353879397,-500.0,0.00035616,9]
[419750906,1775353879406,-670.22,0.00035616,9]
[419750907,1775353879416,-500.0,0.00035616,9]
[419750908,1775353879425,-1691.5,0.00035616,9]
[419750909,1775353879434,-607.31,0.00035616,9]
[419750910,1775353879443,-500.0,0.00035616,9]
[419750911,1775353879453,-502.65559408,0.00035616,9]
[419750912,1775353879462,-1224.7,0.00035616,9]
[419750913,1775353879472,-500.0,0.00035616,9]
[419750914,1775353879482,-500.0,0.00035616,9]
[419750915,1775353879491,-500.0,0.00035616,9]
[419750916,1775353879500,-500.0,0.00035616,9]
[419750917,1775353879509,-517.43991709,0.00035616,9]
[419750918,1775353879519,-515.79,0.00035616,9]
[419750919,1775353879528,-500.0,0.00035616,9]
[419750920,1775353879537,-500.0,0.00035616,9]
[419750921,1775353879546,-741.31,0.00035616,9]
[419750922,1775353879555,-1564.62,0.00035616,9]
[419750923,1775353879564,-500.0,0.00035616,9]
[419750924,1775353879574,-573.90311804,0.00035616,9]
[419750925,1775353879583,-771.83,0.00035616,9]
[419750926,1775353879592,-500.0,0.00035616,9]
[419750927,1775353879601,-500.0,0.00035616,9]
[419750928,1775353879610,-500.0,0.00035616,9]
[419750929,1775353879621,-673.03,0.00035616,9]
[419750930,1775353879630,-500.0,0.00035616,9]
[419750931,1775353879639,-836.87,0.00035616,9]
[419750932,1775353879648,-1148.23,0.00035616,9]
[419750933,1775353879658,-1146.93,0.00035616,9]
[419750934,1775353879669,-151.0,0.00035616,7]
[419750935,1775353879678,-500.0,0.00035616,9]
[419750936,1775353879687,-151.0,0.00035616,7]
[419750937,1775353879696,-774.75,0.00035616,9]
[419750938,1775353879706,-576.94,0.00035616,9]
[419750939,1775353879715,-500.0,0.00035616,9]
[419750940,1775353879725,-766.02,0.00035616,9]
[419750941,1775353879734,-153.964346,0.00035616,7]
[419750942,1775353879744,-500.0,0.00035616,9]
[419750943,1775353879752,-707.67,0.00035616,9]
[419750944,1775353879762,-500.0,0.00035616,9]
[419750945,1775353879771,-679.76,0.00035616,9]
[419750946,1775353879779,-981.99,0.00035616,9]
[419750947,1775353879789,-500.0,0.00035616,9]
[419750948,1775353879798,-500.0,0.00035616,9]
[419750949,1775353879807,-1056.7,0.00035616,9]